fUST/lending_fUST_20250814
["ID","MTS","AMOUNT","RATE_DAILY","PERIOD"]
[379060687,1755111062325,-500.0,0.00019614,2]
[379060688,1755111062335,-198.0,0.00019614,2]
[379060689,1755111062344,-292.0,0.0001962,2]
[379060690,1755111062353,-1000.0,0.00019668,2]
[379060691,1755111062362,-838.71312848,0.00019668,2]
[379060692,1755111062371,-1500.0,0.00019668,2]
[379060693,1755111062380,-343.05552741,0.00019668,2]
[379060694,1755111062388,-211.54271977,0.00019668,2]
[379060695,1755111062397,-533.26908801,0.00019668,2]
[379060696,1755111062408,-1000.0,0.00019668,2]
[379060697,1755111062417,-1042.60550928,0.00019668,2]
[379060698,1755111062427,-1500.0,0.00019668,2]
[379060699,1755111062436,-504.72208807,0.00019668,2]
[379060700,1755111062445,-1000.0,0.00019668,2]
[379060701,1755111062454,-412.55755664,0.00019668,2]
[379060702,1755111062463,-1007.99762055,0.00019668,2]
[379060703,1755111062472,-500.0,0.00019668,2]
[379060704,1755111062482,-1500.0,0.00019668,2]
[379060705,1755111062492,-417.15472785,0.00019719,2]
[379060706,1755111062502,-160.0,0.0001972,2]
[379060707,1755111062512,-160.0,0.0001972,2]
[379060708,1755111062521,-160.0,0.0001972,2]
[379060709,1755111062531,-461.84428375,0.0001972,2]
[379060710,1755111062541,-160.0,0.0001972,2]
[379060711,1755111062551,-215.55264861,0.0001972,2]
[379060712,1755111062562,-843.29866057,0.0001972,2]
[379060713,1755111062581,-160.0,0.0001972,2]
[379060714,1755111062594,-204.08884053,0.00019721,2]
[379060715,1755111062607,-500.47771889,0.00019721,2]
[379060716,1755111062619,-500.0,0.00019721,2]
[379060717,1755111062631,-1000.0,0.00019721,2]
[379060718,1755111062643,-1000.0,0.00019721,2]
[379060719,1755111062759,-1002.04359418,0.00019721,2]
[379060720,1755111062769,-1000.0,0.00019721,2]
[379060721,1755111062778,-151.0,0.00019721,2]
[379060722,1755111062788,-528.09767282,0.00019721,2]
[379060723,1755111062797,-160.0,0.00019721,2]
[379060724,1755111062806,-160.0,0.00019721,2]
[379060725,1755111062816,-160.0,0.00019721,2]
[379060726,1755111062827,-151.0,0.00019726,2]
[379060727,1755111062836,-151.0,0.00019726,2]
[379060728,1755111062846,-151.0,0.00019726,2]
[379060729,1755111062854,-151.0,0.00019726,2]
[379060730,1755111062863,-261.424246,0.00019726,2]
[379060731,1755111062873,-151.0,0.00019726,2]
[379060732,1755111062882,-151.0,0.00019726,2]
[379060733,1755111062892,-151.0,0.00019726,2]
[379060734,1755111062902,-460.0,0.00019726,2]
[379060735,1755111062914,-460.0,0.00019726,2]
[379060736,1755111062923,-460.0,0.00019726,2]
[379060737,1755111062932,-460.0,0.00019726,2]
[379060738,1755111062942,-460.0,0.00019726,2]
[379060739,1755111062951,-460.0,0.00019726,2]
[379060740,1755111062961,-460.0,0.00019726,2]
[379060741,1755111062970,-732.46,0.00019726,2]
[379060742,1755111062980,-460.0,0.00019726,2]
[379060743,1755111062990,-460.0,0.00019726,2]
[379060744,1755111062999,-460.0,0.00019726,2]
[379060745,1755111063008,-460.0,0.00019726,2]
[379060746,1755111063017,-372.60056369,0.00019726,2]
[379060747,1755111063028,-460.0,0.00019726,2]
[379060748,1755111063039,-460.0,0.00019726,2]
[379060749,1755111063049,-460.0,0.00019726,2]
[379060750,1755111063059,-460.0,0.00019726,2]
[379060751,1755111063069,-460.0,0.00019726,2]
[379060752,1755111063079,-460.0,0.00019726,2]
[379060753,1755111063089,-460.0,0.00019726,2]
[379060754,1755111063098,-460.0,0.00019726,2]
[379060755,1755111063108,-460.0,0.00019726,2]
[379060756,1755111063117,-460.0,0.00019726,2]
[379060757,1755111063127,-460.0,0.00019726,2]
[379060758,1755111063137,-460.0,0.00019726,2]
[379060759,1755111063147,-460.0,0.00019726,2]
[379060760,1755111063159,-459.37666684,0.00019726,2]
[379060761,1755111063169,-460.0,0.00019726,2]
[379060762,1755111063179,-460.0,0.00019726,2]
[379060763,1755111063188,-460.0,0.00019726,2]
[379060764,1755111063198,-460.0,0.00019726,2]
[379060765,1755111063208,-460.0,0.00019726,2]
[379060766,1755111063217,-460.0,0.00019726,2]
[379060767,1755111063226,-266.36265958,0.00019726,2]
[379060768,1755111063236,-460.0,0.00019726,2]
[379060769,1755111063245,-460.0,0.00019726,2]
[379060770,1755111063255,-460.0,0.00019726,2]
[379060771,1755111063264,-460.0,0.00019726,2]
[379060772,1755111063274,-460.0,0.00019726,2]
[379060773,1755111063283,-460.0,0.00019726,2]
[379060774,1755111063293,-460.0,0.00019726,2]
[379060775,1755111063303,-460.0,0.00019726,2]
[379060776,1755111063312,-460.0,0.00019726,2]
[379060777,1755111063321,-460.0,0.00019726,2]
[379060778,1755111063331,-460.0,0.00019726,2]
[379060779,1755111063341,-460.0,0.00019726,2]
[379060780,1755111063351,-460.0,0.00019726,2]
[379060781,1755111063360,-460.0,0.00019726,2]
[379060782,1755111063370,-460.0,0.00019726,2]
[379060783,1755111063379,-460.0,0.00019726,2]
[379060784,1755111063389,-702.73,0.00019726,2]
[379060785,1755111063398,-342.96624512,0.00019726,2]
[379060786,1755111063410,-460.0,0.00019726,2]
[379060787,1755111063420,-460.0,0.00019726,2]
[379060788,1755111063430,-460.0,0.00019726,2]
[379060789,1755111063439,-460.0,0.00019726,2]
[379060790,1755111063449,-460.0,0.00019726,2]
[379060791,1755111063459,-460.0,0.00019726,2]
[379060792,1755111063469,-460.0,0.00019726,2]
[379060793,1755111063479,-460.0,0.00019726,2]
[379060794,1755111063489,-277.80418431,0.00019726,2]
[379060795,1755111063499,-462.97178125,0.00019726,2]
[379060796,1755111063509,-460.0,0.00019726,2]
[379060797,1755111063519,-460.0,0.00019726,2]
[379060798,1755111063529,-460.0,0.00019726,2]
[379060799,1755111063539,-460.0,0.00019726,2]
[379060800,1755111063549,-460.0,0.00019726,2]
[379060801,1755111063559,-307.12,0.00019726,2]
[379060802,1755111063568,-460.0,0.00019726,2]
[379060803,1755111063578,-460.0,0.00019726,2]
[379060804,1755111063588,-460.0,0.00019726,2]
[379060805,1755111063598,-460.0,0.00019726,2]
[379060806,1755111063607,-460.0,0.00019726,2]
[379060807,1755111063617,-876.48,0.00019726,2]
[379060808,1755111063627,-460.0,0.00019726,2]
[379060809,1755111063637,-577.95,0.00019726,2]
[379060810,1755111063647,-627.08,0.00019726,2]
[379060811,1755111063657,-460.0,0.00019726,2]
[379060812,1755111063667,-460.0,0.00019726,2]
[379060813,1755111063676,-460.0,0.00019726,2]
[379060814,1755111063686,-460.0,0.00019726,2]
[379060815,1755111063696,-1286.61,0.00019726,2]
[379060816,1755111063706,-460.0,0.00019726,2]
[379060817,1755111063716,-730.35,0.00019726,2]
[379060818,1755111063726,-460.0,0.00019726,2]
[379060819,1755111063736,-460.0,0.00019726,2]
[379060820,1755111063750,-460.0,0.00019726,2]
[379060821,1755111063761,-235.63334937,0.00019726,2]
[379060822,1755111063771,-460.0,0.00019726,2]
[379060823,1755111063781,-460.0,0.00019726,2]
[379060824,1755111063791,-460.0,0.00019726,2]
[379060825,1755111063801,-460.0,0.00019726,2]
[379060826,1755111063811,-460.0,0.00019726,2]
[379060827,1755111063821,-176.78007701,0.00019726,2]
[379060828,1755111063831,-460.0,0.00019726,2]
[379060829,1755111063841,-460.0,0.00019726,2]
[379060830,1755111063851,-460.0,0.00019726,2]
[379060831,1755111063860,-200.66094873,0.00019726,2]
[379060832,1755111063870,-460.0,0.00019726,2]
[379060833,1755111063880,-460.0,0.00019726,2]
[379060834,1755111063889,-460.0,0.00019726,2]
[379060835,1755111063899,-1763.54,0.00019726,2]
[379060836,1755111063910,-460.0,0.00019726,2]
[379060837,1755111063920,-460.0,0.00019726,2]
[379060838,1755111063929,-460.0,0.00019726,2]
[379060839,1755111063939,-460.0,0.00019726,2]
[379060840,1755111063948,-688.07,0.00019726,2]
[379060841,1755111063958,-460.0,0.00019726,2]
[379060842,1755111063968,-460.0,0.00019726,2]
[379060843,1755111063978,-460.0,0.00019726,2]
[379060844,1755111063988,-460.0,0.00019726,2]
[379060845,1755111063997,-460.0,0.00019726,2]
[379060846,1755111064007,-460.0,0.00019726,2]
[379060847,1755111064017,-727.93,0.00019726,2]
[379060848,1755111064027,-460.0,0.00019726,2]
[379060849,1755111064037,-460.0,0.00019726,2]
[379060850,1755111064047,-460.0,0.00019726,2]
[379060851,1755111064056,-460.0,0.00019726,2]
[379060852,1755111064066,-460.0,0.00019726,2]
[379060853,1755111064076,-460.0,0.00019726,2]
[379060854,1755111064085,-460.0,0.00019726,2]
[379060855,1755111064095,-460.0,0.00019726,2]
[379060856,1755111064105,-460.0,0.00019726,2]
[379060857,1755111064114,-460.0,0.00019726,2]
[379060858,1755111064124,-1570.52,0.00019726,2]
[379060859,1755111064134,-460.93,0.00019726,2]
[379060860,1755111064143,-460.0,0.00019726,2]
[379060861,1755111064153,-532.38969381,0.00019726,2]
[379060862,1755111064163,-627.84,0.00019726,2]
[379060863,1755111064173,-793.07,0.00019726,2]
[379060864,1755111064182,-1334.84,0.00019726,2]
[379060865,1755111064191,-460.0,0.00019726,2]
[379060866,1755111064201,-460.0,0.00019726,2]
[379060867,1755111064210,-460.0,0.00019726,2]
[379060868,1755111064220,-460.0,0.00019726,2]
[379060869,1755111064230,-460.0,0.00019726,2]
[379060870,1755111064240,-460.0,0.00019726,2]
[379060871,1755111064249,-460.0,0.00019726,2]
[379060872,1755111064259,-460.0,0.00019726,2]
[379060873,1755111064268,-460.0,0.00019726,2]
[379060874,1755111064278,-460.0,0.00019726,2]
[379060875,1755111064287,-712.59,0.00019726,2]
[379060876,1755111064297,-460.0,0.00019726,2]
[379060877,1755111064306,-460.0,0.00019726,2]
[379060878,1755111064315,-461.24111422,0.00019726,2]
[379060879,1755111064325,-460.0,0.00019726,2]
[379060880,1755111064334,-460.0,0.00019726,2]
[379060881,1755111064344,-527.61373883,0.00019726,2]
[379060882,1755111064353,-460.0,0.00019726,2]
[379060883,1755111064362,-460.0,0.00019726,2]
[379060884,1755111064371,-460.0,0.00019726,2]
[379060885,1755111064381,-460.0,0.00019726,2]
[379060886,1755111064391,-460.0,0.00019726,2]
[379060887,1755111064400,-460.0,0.00019726,2]
[379060888,1755111064410,-733.41,0.00019726,2]
[379060889,1755111064420,-460.0,0.00019726,2]
[379060890,1755111064429,-460.0,0.00019726,2]
[379060891,1755111064439,-460.0,0.00019726,2]
[379060892,1755111064449,-691.67,0.00019726,2]
[379060893,1755111064458,-460.0,0.00019726,2]
[379060894,1755111064468,-460.0,0.00019726,2]
[379060895,1755111064477,-460.0,0.00019726,2]
[379060896,1755111064591,-1094.83,0.00019726,2]
[379060897,1755111064600,-638.01,0.00019726,2]
[379060898,1755111064610,-1920.52,0.00019726,2]
[379060899,1755111064619,-320.14395382,0.00019726,2]
[379060900,1755111064628,-460.0,0.00019726,2]
[379060901,1755111064637,-460.0,0.00019726,2]
[379060902,1755111064647,-560.49053169,0.00019726,2]
[379060903,1755111064656,-460.0,0.00019726,2]
[379060904,1755111064666,-460.0,0.00019726,2]
[379060905,1755111064676,-460.0,0.00019726,2]
[379060906,1755111064685,-460.0,0.00019726,2]
[379060907,1755111064694,-460.0,0.00019726,2]
[379060908,1755111064703,-460.0,0.00019726,2]
[379060909,1755111064713,-460.0,0.00019726,2]
[379060910,1755111064722,-460.0,0.00019726,2]
[379060911,1755111064731,-712.21,0.00019726,2]
[379060912,1755111064741,-460.0,0.00019726,2]
[379060913,1755111064753,-460.0,0.00019726,2]
[379060914,1755111064762,-460.0,0.00019726,2]
[379060915,1755111064771,-474.92,0.00019726,2]
[379060916,1755111064780,-460.0,0.00019726,2]
[379060917,1755111064790,-460.0,0.00019726,2]
[379060918,1755111064799,-460.0,0.00019726,2]
[379060919,1755111064808,-476.62,0.00019726,2]
[379060920,1755111064817,-460.0,0.00019726,2]
[379060921,1755111064827,-460.0,0.00019726,2]
[379060922,1755111064836,-460.0,0.00019726,2]
[379060923,1755111064846,-460.0,0.00019726,2]
[379060924,1755111064855,-460.0,0.00019726,2]
[379060925,1755111064865,-460.0,0.00019726,2]
[379060926,1755111064874,-460.0,0.00019726,2]
[379060927,1755111064883,-460.0,0.00019726,2]
[379060928,1755111064892,-460.0,0.00019726,2]
[379060929,1755111064902,-460.0,0.00019726,2]
[379060930,1755111064912,-460.0,0.00019726,2]
[379060931,1755111064922,-445.5963132,0.00019726,2]
[379060932,1755111064932,-292.0340137,0.00019726,2]
[379060933,1755111064941,-3000.81,0.00019726,2]
[379060934,1755111064951,-460.0,0.00019726,2]
[379060935,1755111064960,-539.94746805,0.00019726,2]
[379060936,1755111064969,-460.0,0.00019726,2]
[379060937,1755111064979,-460.0,0.00019726,2]
[379060938,1755111064989,-566.38,0.00019726,2]
[379060939,1755111064998,-460.0,0.00019726,2]
[379060940,1755111065008,-460.0,0.00019726,2]
[379060941,1755111065018,-460.0,0.00019726,2]
[379060942,1755111065028,-953.47,0.00019726,2]
[379060943,1755111065039,-460.0,0.00019726,2]
[379060944,1755111065049,-460.0,0.00019726,2]
[379060945,1755111065058,-549.06,0.00019726,2]
[379060946,1755111065069,-504.13,0.00019726,2]
[379060947,1755111065078,-460.0,0.00019726,2]
[379060948,1755111065088,-460.0,0.00019726,2]
[379060949,1755111065097,-460.0,0.00019726,2]
[379060950,1755111065107,-241.10250237,0.00019726,2]
[379060951,1755111065116,-460.0,0.00019726,2]
[379060952,1755111065125,-915.64,0.00019726,2]
[379060953,1755111065135,-460.0,0.00019726,2]
[379060954,1755111065144,-460.0,0.00019726,2]
[379060955,1755111065153,-460.0,0.00019726,2]
[379060956,1755111065163,-594.92,0.00019726,2]
[379060957,1755111065173,-460.0,0.00019726,2]
[379060958,1755111065183,-460.0,0.00019726,2]
[379060959,1755111065192,-460.0,0.00019726,2]
[379060960,1755111065201,-460.0,0.00019726,2]
[379060961,1755111065211,-1704.74,0.00019726,2]
[379060962,1755111065220,-460.0,0.00019726,2]
[379060963,1755111065229,-460.0,0.00019726,2]
[379060964,1755111065239,-460.0,0.00019726,2]
[379060965,1755111065249,-867.65,0.00019726,2]
[379060966,1755111065258,-500.0,0.00019726,2]
[379060967,1755111065267,-611.03,0.00019726,2]
[379060968,1755111065277,-308.59831537,0.00019726,2]
[379060969,1755111065287,-460.0,0.00019726,2]
[379060970,1755111065298,-460.0,0.00019726,2]
[379060971,1755111065307,-460.0,0.00019726,2]
[379060972,1755111065317,-1488.0,0.00019726,2]
[379060973,1755111065326,-460.0,0.00019726,2]
[379060974,1755111065335,-460.0,0.00019726,2]
[379060975,1755111065345,-1414.82,0.00019726,2]
[379060976,1755111065354,-460.0,0.00019726,2]
[379060977,1755111065363,-460.0,0.00019726,2]
[379060978,1755111065373,-460.0,0.00019726,2]
[379060979,1755111065383,-460.0,0.00019726,2]
[379060980,1755111065392,-460.0,0.00019726,2]
[379060981,1755111065402,-819.97,0.00019726,2]
[379060982,1755111065411,-460.0,0.00019726,2]
[379060983,1755111065421,-460.0,0.00019726,2]
[379060984,1755111065430,-460.0,0.00019726,2]
[379060985,1755111065440,-460.0,0.00019726,2]
[379060986,1755111065449,-460.0,0.00019726,2]
[379060987,1755111065459,-1362.37,0.00019726,2]
[379060988,1755111065468,-563.12,0.00019726,2]
[379060989,1755111065477,-464.63339883,0.00019726,2]
[379060990,1755111065486,-460.0,0.00019726,2]
[379060991,1755111065495,-460.0,0.00019726,2]
[379060992,1755111065504,-460.0,0.00019726,2]
[379060993,1755111065514,-1112.21,0.00019726,2]
[379060994,1755111065523,-2365.36,0.00019726,2]
[379060995,1755111065533,-460.0,0.00019726,2]
[379060996,1755111065543,-460.0,0.00019726,2]
[379060997,1755111065552,-460.0,0.00019726,2]
[379060998,1755111065561,-2532.46,0.00019726,2]
[379060999,1755111065571,-460.0,0.00019726,2]
[379061000,1755111065580,-610.09,0.00019726,2]
[379061001,1755111065589,-460.0,0.00019726,2]
[379061002,1755111065599,-460.0,0.00019726,2]
[379061003,1755111065608,-460.0,0.00019726,2]
[379061004,1755111065617,-460.0,0.00019726,2]
[379061005,1755111065626,-460.0,0.00019726,2]
[379061006,1755111065635,-6923.07,0.00019726,2]
[379061007,1755111065644,-460.0,0.00019726,2]
[379061008,1755111065653,-1181.31,0.00019726,2]
[379061009,1755111065664,-460.0,0.00019726,2]
[379061010,1755111065673,-1108.84,0.00019726,2]
[379061011,1755111065683,-1449.1,0.00019726,2]
[379061012,1755111065692,-2125.73,0.00019726,2]
[379061013,1755111065701,-606.3,0.00019726,2]
[379061014,1755111065710,-460.0,0.00019726,2]
[379061015,1755111065719,-460.0,0.00019726,2]
[379061016,1755111065729,-627.37,0.00019726,2]
[379061017,1755111065740,-460.0,0.00019726,2]
[379061018,1755111065753,-537.36,0.00019726,2]
[379061019,1755111065767,-460.0,0.00019726,2]
[379061020,1755111065777,-460.0,0.00019726,2]
[379061021,1755111065786,-460.0,0.00019726,2]
[379061022,1755111065798,-1090.52,0.00019726,2]
[379061023,1755111065807,-460.0,0.00019726,2]
[379061024,1755111065817,-460.0,0.00019726,2]
[379061025,1755111065829,-460.0,0.00019726,2]
[379061026,1755111065838,-460.0,0.00019726,2]
[379061027,1755111065848,-460.0,0.00019726,2]
[379061028,1755111065857,-460.0,0.00019726,2]
[379061029,1755111065866,-934.67,0.00019726,2]
[379061030,1755111065875,-460.0,0.00019726,2]
[379061031,1755111065885,-717.76,0.00019726,2]
[379061032,1755111065894,-1180.89,0.00019726,2]
[379061033,1755111065903,-460.0,0.00019726,2]
[379061034,1755111065913,-460.0,0.00019726,2]
[379061035,1755111065923,-460.0,0.00019726,2]
[379061036,1755111065932,-460.0,0.00019726,2]
[379061037,1755111065941,-460.0,0.00019726,2]
[379061038,1755111065951,-549.84,0.00019726,2]
[379061039,1755111065960,-460.0,0.00019726,2]
[379061040,1755111065970,-460.0,0.00019726,2]
[379061041,1755111065979,-460.0,0.00019726,2]
[379061042,1755111065988,-460.0,0.00019726,2]
[379061043,1755111065998,-460.0,0.00019726,2]
[379061044,1755111066007,-460.0,0.00019726,2]
[379061045,1755111066017,-460.0,0.00019726,2]
[379061046,1755111066026,-460.0,0.00019726,2]
[379061047,1755111066036,-460.0,0.00019726,2]
[379061048,1755111066045,-460.0,0.00019726,2]
[379061049,1755111066054,-460.0,0.00019726,2]
[379061050,1755111066064,-917.23,0.00019726,2]
[379061051,1755111066073,-1083.56,0.00019726,2]
[379061052,1755111066082,-460.0,0.00019726,2]
[379061053,1755111066091,-460.0,0.00019726,2]
[379061054,1755111066101,-460.0,0.00019726,2]
[379061055,1755111066110,-460.0,0.00019726,2]
[379061056,1755111066120,-619.38,0.00019726,2]
[379061057,1755111066130,-460.0,0.00019726,2]
[379061058,1755111066235,-1703.01,0.00019726,2]
[379061059,1755111066245,-460.0,0.00019726,2]
[379061060,1755111066255,-866.89,0.00019726,2]
[379061061,1755111066264,-460.0,0.00019726,2]
[379061062,1755111066274,-460.0,0.00019726,2]
[379061063,1755111066283,-460.0,0.00019726,2]
[379061064,1755111066292,-460.0,0.00019726,2]
[379061065,1755111066302,-522.0,0.00019726,2]
[379061066,1755111066311,-513.96,0.00019726,2]
[379061067,1755111066320,-806.51,0.00019726,2]
[379061068,1755111066330,-460.0,0.00019726,2]
[379061069,1755111066339,-460.0,0.00019726,2]
[379061070,1755111066349,-460.0,0.00019726,2]
[379061071,1755111066359,-566.33,0.00019726,2]
[379061072,1755111066368,-460.0,0.00019726,2]
[379061073,1755111066378,-460.0,0.00019726,2]
[379061074,1755111066387,-460.0,0.00019726,2]
[379061075,1755111066397,-509.74,0.00019726,2]
[379061076,1755111066406,-460.0,0.00019726,2]
[379061077,1755111066417,-460.0,0.00019726,2]
[379061078,1755111066426,-672.54,0.00019726,2]
[379061079,1755111066436,-460.0,0.00019726,2]
[379061080,1755111066445,-460.0,0.00019726,2]
[379061081,1755111066455,-460.0,0.00019726,2]
[379061082,1755111066464,-791.56,0.00019726,2]
[379061083,1755111066474,-465.83713181,0.00019726,2]
[379061084,1755111066483,-460.0,0.00019726,2]
[379061085,1755111066493,-2530.94,0.00019726,2]
[379061086,1755111066502,-1703.22,0.00019726,2]
[379061087,1755111066512,-460.0,0.00019726,2]
[379061088,1755111066522,-460.0,0.00019726,2]
[379061089,1755111066531,-1072.44,0.00019726,2]
[379061090,1755111066541,-460.0,0.00019726,2]
[379061091,1755111066551,-460.0,0.00019726,2]
[379061092,1755111066561,-460.0,0.00019726,2]
[379061093,1755111066571,-3405.29,0.00019726,2]
[379061094,1755111066581,-460.0,0.00019726,2]
[379061095,1755111066590,-460.0,0.00019726,2]
[379061096,1755111066600,-1407.44,0.00019726,2]
[379061097,1755111066609,-460.0,0.00019726,2]
[379061098,1755111066618,-460.0,0.00019726,2]
[379061099,1755111066627,-460.0,0.00019726,2]
[379061100,1755111066637,-460.0,0.00019726,2]
[379061101,1755111066646,-460.0,0.00019726,2]
[379061102,1755111066657,-1442.51,0.00019726,2]
[379061103,1755111066670,-1025.84,0.00019726,2]
[379061104,1755111066680,-460.0,0.00019726,2]
[379061105,1755111066689,-460.0,0.00019726,2]
[379061106,1755111066699,-460.0,0.00019726,2]
[379061107,1755111066708,-460.0,0.00019726,2]
[379061108,1755111066717,-1471.75,0.00019726,2]
[379061109,1755111066728,-460.0,0.00019726,2]
[379061110,1755111066737,-656.82,0.00019726,2]
[379061111,1755111066753,-467.85,0.00019726,2]
[379061112,1755111066762,-460.0,0.00019726,2]
[379061113,1755111066772,-460.0,0.00019726,2]
[379061114,1755111066781,-1851.38,0.00019726,2]
[379061115,1755111066790,-1825.28,0.00019726,2]
[379061116,1755111066800,-460.0,0.00019726,2]
[379061117,1755111066809,-460.0,0.00019726,2]
[379061118,1755111066819,-460.0,0.00019726,2]
[379061119,1755111066829,-460.0,0.00019726,2]
[379061120,1755111066838,-460.0,0.00019726,2]
[379061121,1755111066848,-460.0,0.00019726,2]
[379061122,1755111066857,-460.0,0.00019726,2]
[379061123,1755111066867,-460.0,0.00019726,2]
[379061124,1755111066876,-689.26,0.00019726,2]
[379061125,1755111066886,-1735.32,0.00019726,2]
[379061126,1755111066895,-4087.19,0.00019726,2]
[379061127,1755111066905,-460.0,0.00019726,2]
[379061128,1755111066917,-1834.93,0.00019726,2]
[379061129,1755111066926,-460.0,0.00019726,2]
[379061130,1755111066936,-460.0,0.00019726,2]
[379061131,1755111066945,-3792.65,0.00019726,2]
[379061132,1755111066954,-460.0,0.00019726,2]
[379061133,1755111066964,-406.59707876,0.00019726,2]
[379061134,1755111066973,-460.0,0.00019726,2]
[379061135,1755111066995,-543.08,0.00019726,2]
[379061136,1755111067011,-1284.61,0.00019726,2]
[379061137,1755111067029,-1670.22,0.00019726,2]
[379061138,1755111067048,-662.4,0.00019726,2]
[379061139,1755111067065,-460.0,0.00019726,2]
[379061140,1755111067082,-767.42,0.00019726,2]
[379061141,1755111067100,-619.38,0.00019726,2]
[379061142,1755111067116,-975.75,0.00019726,2]
[379061143,1755111067132,-628.02,0.00019726,2]
[379061144,1755111067152,-460.0,0.00019726,2]
[379061145,1755111067171,-460.0,0.00019726,2]
[379061146,1755111067184,-460.0,0.00019726,2]
[379061147,1755111067202,-824.3,0.00019726,2]
[379061148,1755111067217,-460.0,0.00019726,2]
[379061149,1755111067232,-4267.69,0.00019726,2]
[379061150,1755111067246,-460.0,0.00019726,2]
[379061151,1755111067261,-467.32998762,0.00019726,2]
[379061152,1755111067276,-1880.81,0.00019726,2]
[379061153,1755111067291,-792.78,0.00019726,2]
[379061154,1755111067305,-460.0,0.00019726,2]
[379061155,1755111067320,-188.23197954,0.00019726,2]
[379061156,1755111067334,-460.0,0.00019726,2]
[379061157,1755111067348,-710.88,0.00019726,2]
[379061158,1755111067362,-1405.32,0.00019726,2]
[379061159,1755111067377,-6760.17,0.00019726,2]
[379061160,1755111067391,-460.0,0.00019726,2]
[379061161,1755111067405,-460.0,0.00019726,2]
[379061162,1755111067421,-460.0,0.00019726,2]
[379061163,1755111067436,-1971.62,0.00019726,2]
[379061164,1755111067450,-460.0,0.00019726,2]
[379061165,1755111067464,-666.1,0.00019726,2]
[379061166,1755111067479,-460.0,0.00019726,2]
[379061167,1755111067494,-659.1,0.00019726,2]
[379061168,1755111067508,-460.0,0.00019726,2]
[379061169,1755111067521,-460.0,0.00019726,2]
[379061170,1755111067535,-460.0,0.00019726,2]
[379061171,1755111067551,-479.3838471,0.00019726,2]
[379061172,1755111067565,-460.0,0.00019726,2]
[379061173,1755111067579,-460.0,0.00019726,2]
[379061174,1755111067593,-460.0,0.00019726,2]
[379061175,1755111067607,-460.0,0.00019726,2]
[379061176,1755111067621,-520.81,0.00019726,2]
[379061177,1755111067636,-460.0,0.00019726,2]
[379061178,1755111067653,-774.35,0.00019726,2]
[379061179,1755111067673,-460.0,0.00019726,2]
[379061180,1755111067687,-460.0,0.00019726,2]
[379061181,1755111067702,-460.0,0.00019726,2]
[379061182,1755111067725,-460.0,0.00019726,2]
[379061183,1755111067740,-460.0,0.00019726,2]
[379061184,1755111067761,-460.0,0.00019726,2]
[379061185,1755111067775,-460.0,0.00019726,2]
[379061186,1755111067790,-297.33272187,0.00019726,2]